fUST/lending_fUST_20250623
["ID","MTS","AMOUNT","RATE_DAILY","PERIOD"]
[367023012,1750620421339,259.50829602,0.00019961,2]
[367023013,1750620428100,-747.03228742,0.00020477,2]
[367023014,1750620428124,-1294.3936091,0.00020578,2]
[367023015,1750620428147,-16.26973039,0.00020633,2]
[367023016,1750620434121,-457.50489961,0.00020633,2]
[367023017,1750620434143,-290.010093,0.00020721,2]
[367023018,1750620434165,-329.01388,0.0002081,2]
[367023019,1750620434189,-296.56,0.00020893,2]
[367023020,1750620434210,-2446.80164946,0.000212,2]
[367023021,1750620434232,-227.08485363,0.00021675,2]
[367023022,1750620434253,-437.24886619,0.00021735,2]
[367023023,1750620434274,-495.63851838,0.00021756,2]
[367023025,1750620451128,-177.61030917,0.00021756,2]
[367023026,1750620451150,-232.53942234,0.00021853,2]
[367023027,1750620471413,337.51557368,0.00019256,2]
[367023039,1750620496191,386.83124,0.00013699,2]
[367023045,1750620515456,372.50336837,0.0002,120]
[367023048,1750620525174,5609.05066983,0.0002,2]
[367023065,1750620565099,-386.83124,0.00020187,2]
[367023066,1750620565119,-666.0,0.00020686,2]
[367023069,1750620621223,1437.26620204,0.00020789,2]
[367023081,1750620632787,-1237.92,0.00020789,2]
[367023083,1750620632798,-19497.57880305,0.00020789,2]
[367023085,1750620632809,-2727.23499491,0.00020789,2]
[367023087,1750620632818,-173.70773591,0.00021,2]
[367023088,1750620632833,-676.85383964,0.00021,10]
[367023089,1750620632842,-499.999999,0.00021,2]
[367023090,1750620632851,-1145.5801441,0.00021028,2]
[367023091,1750620632861,-2136.9961756,0.000215,2]
[367023092,1750620632870,-589.09272408,0.00021756,2]
[367023093,1750620632879,-207.4,0.00021846,2]
[367023094,1750620632889,-67.46057766,0.00021853,2]
[367023095,1750620632898,-1200.0,0.00021853,2]
[367023096,1750620632907,-300.0,0.00021853,2]
[367023097,1750620632916,-300.0,0.00021853,2]
[367023098,1750620632925,-300.0,0.00021853,2]
[367023099,1750620632934,-300.0,0.00021853,2]
[367023100,1750620632943,-772.24,0.00021855,2]
[367023101,1750620632952,-152.40883423,0.00021855,2]
[367023102,1750620632961,-177.7945861,0.00021855,2]
[367023103,1750620632970,-160.0,0.00021863,2]
[367023104,1750620632979,-500.0,0.00021873,2]
[367023105,1750620632988,-500.0,0.00021873,2]
[367023106,1750620632997,-500.0,0.00021873,2]
[367023107,1750620633006,-317.69235227,0.00021873,2]
[367023108,1750620633015,-500.0,0.00021873,2]
[367023109,1750620633025,-500.0,0.00021873,2]
[367023110,1750620633034,-500.0,0.00021873,2]
[367023111,1750620633044,-500.0,0.00021873,2]
[367023112,1750620633054,-500.0,0.00021873,2]
[367023113,1750620633063,-500.0,0.00021873,2]
[367023114,1750620633073,-500.0,0.00021873,2]
[367023115,1750620633082,-500.0,0.00021873,2]
[367023116,1750620633092,-500.0,0.00021886,2]
[367023117,1750620633102,-183.3549562,0.00021886,2]
[367023118,1750620633111,-500.0,0.00021887,2]
[367023119,1750620633120,-500.0,0.00021887,2]
[367023120,1750620633129,-500.0,0.00021887,2]
[367023121,1750620633139,-500.0,0.00021887,2]
[367023122,1750620633148,-500.0,0.00021887,2]
[367023123,1750620633160,-500.0,0.00021887,2]
[367023124,1750620633170,-500.0,0.00021887,2]
[367023126,1750620633179,-500.0,0.00021887,2]
[367023128,1750620633188,-500.0,0.00021887,2]
[367023130,1750620633199,-500.0,0.00021887,2]
[367023132,1750620633208,-5000.0,0.00021887,2]
[367023134,1750620633218,-25000.0,0.00021887,2]
[367023136,1750620633227,-4648.45849901,0.00021887,2]
[367023159,1750620638515,-500.0,0.00020999,2]
[367023160,1750620638525,-500.0,0.00020999,2]
[367023161,1750620638534,-418.56366478,0.00020999,2]
[367023162,1750620638543,-500.0,0.00020999,2]
[367023163,1750620638553,-500.0,0.00020999,2]
[367023164,1750620638563,-343.02465388,0.00020999,2]
[367023165,1750620638573,-1638.41169169,0.00021887,2]
[367023166,1750620638585,-2140.0,0.00021887,2]
[367023167,1750620638597,-3085.1,0.00021887,2]
[367023168,1750620638617,-11136.09643436,0.00021887,2]
[367023169,1750620638626,-50863.90356664,0.000219,2]
[367023170,1750620638637,-1212.25897324,0.000219,2]
[367023171,1750620638649,-377.33167231,0.000219,2]
[367023172,1750620638660,-1476.8542889,0.000219,2]
[367023173,1750620638671,-20006.12024832,0.000219,2]
[367023174,1750620638680,-500.0,0.000219,6]
[367023175,1750620638689,-1489.55702609,0.00021987,2]
[367023222,1750620640853,-10282.02784651,0.00021987,2]
[367023224,1750620640864,-501.01,0.00021989,7]
[367023226,1750620640874,-54589.03209887,0.0002199,2]
[367023289,1750620643789,-45410.96790113,0.0002199,2]
[367023290,1750620643799,-5888.0,0.0002199,2]
[367023291,1750620643808,-238458.13669,0.00022071,2]
[367023292,1750620643817,-5888.0,0.00022143,2]
[367023293,1750620643826,-525.70748846,0.00022174,6]
[367023294,1750620643835,-1846.04,0.000222,7]
[367023295,1750620643844,-296.56,0.00022263,2]
[367023296,1750620643853,-500.0,0.000223,2]
[367023297,1750620643863,-500.0,0.000223,2]
[367023298,1750620643873,-500.0,0.000223,2]
[367023299,1750620643883,-490.66,0.00022411,3]
[367023300,1750620643892,-245.33,0.00022411,3]
[367023301,1750620643901,-736.01,0.00022411,3]
[367023302,1750620643911,-1000.0,0.00022421,2]
[367023303,1750620643920,-1000.0,0.00022421,2]
[367023304,1750620643930,-1000.0,0.00022421,2]
[367023305,1750620643939,-1000.0,0.00022421,2]
[367023306,1750620643949,-1000.0,0.00022421,2]
[367023307,1750620643958,-1000.0,0.00022421,2]
[367023309,1750620643967,-1000.0,0.00022421,2]
[367023311,1750620643976,-1000.0,0.00022421,2]
[367023313,1750620643986,-1000.0,0.00022421,2]
[367023315,1750620643995,-1000.0,0.00022421,2]
[367023317,1750620644005,-589.09272406,0.00022427,2]
[367023319,1750620644014,-5000.0,0.00022435,2]
[367023321,1750620644023,-25000.0,0.00022435,2]
[367023323,1750620644032,-850.0,0.000225,14]
[367023325,1750620644042,-501.01,0.00022537,8]
[367023327,1750620644051,-313.8,0.00022551,4]
[367023329,1750620644060,-1000.0,0.0002261,2]
[367023330,1750620644069,-4185.0,0.00022632,2]
[367023331,1750620644078,-160.0,0.00022632,2]
[367023333,1750620644087,-836.56272071,0.00022632,2]
[367023334,1750620644096,-12551.52821599,0.00022632,2]
[367023335,1750620644106,-425.01221603,0.00022632,2]
[367023336,1750620644115,-230.14598372,0.00022632,2]
[367023337,1750620644124,-846.39664074,0.00022632,2]
[367023338,1750620644134,-213.59462818,0.00022632,2]
[367023339,1750620644144,-160.0,0.00022632,2]
[367023340,1750620644155,-160.0,0.00022632,2]
[367023341,1750620644166,-160.0,0.00022632,2]
[367023342,1750620644175,-1000.0,0.00022758,2]
[367023343,1750620644184,-12551.52821599,0.00022762,7]
[367023344,1750620644193,-160.0,0.00022762,7]
[367023345,1750620644204,-13907.40045211,0.000228,2]
[367023346,1750620644213,-353.0,0.00022803,2]
[367023347,1750620644223,-313.8,0.00022833,5]
[367023348,1750620644232,-500.61588998,0.00022848,2]
[367023349,1750620644242,-1000.0,0.00022848,2]
[367023350,1750620644253,-1000.0,0.00022848,2]
[367023351,1750620644262,-153.95703304,0.00022853,2]
[367023352,1750620644271,-1799.92036159,0.000229,2]
[367023353,1750620644281,-5947.81183974,0.000229,2]
[367023354,1750620644290,-1000.0,0.00022907,2]
[367023355,1750620644299,-1157.98674882,0.00022968,2]
[367023356,1750620644309,-1500.0,0.00022968,2]
[367023357,1750620644318,-1500.0,0.00022968,2]
[367023358,1750620644328,-374.07930868,0.00022968,2]
[367023360,1750620644337,-1500.0,0.00022968,2]
[367023361,1750620644347,-1500.0,0.00022968,2]
[367023363,1750620644356,-1500.0,0.00022968,2]
[367023365,1750620644366,-1500.0,0.00022968,2]
[367023366,1750620644375,-500.0,0.00022968,2]
[367023368,1750620644385,-1000.0,0.00022968,2]
[367023369,1750620644394,-500.33125713,0.00022973,2]
[367023370,1750620644403,-500.0,0.00022973,2]
[367023371,1750620644413,-500.0,0.00022973,2]
[367023372,1750620644422,-500.0,0.00022973,2]
[367023373,1750620644431,-500.0,0.00022973,2]
[367023374,1750620644440,-500.0,0.00022973,2]
[367023375,1750620644450,-500.0,0.00022973,2]
[367023376,1750620644459,-500.0,0.00022973,2]
[367023377,1750620644468,-500.0,0.00022973,2]
[367023378,1750620644478,-500.0,0.00022973,2]
[367023379,1750620644487,-500.0,0.00022973,2]
[367023380,1750620644496,-500.0,0.00022973,2]
[367023381,1750620644506,-25000.0,0.00022983,2]
[367023382,1750620644515,-24732.45371357,0.00023,2]
[367023383,1750620644525,-1957.22136018,0.00023,2]
[367023384,1750620644535,-9648.08512813,0.00023,7]
[367023385,1750620644544,-10117.95286853,0.00023,3]
[367023386,1750620644554,-12156.88750231,0.00023,15]
[367023387,1750620644563,-53483.8302289,0.00023,2]
[367023388,1750620644573,-294.89,0.00023,7]
[367023389,1750620644582,-3033.05037239,0.00023,2]
[367023390,1750620644592,-1331.36205849,0.00023,2]
[367023391,1750620644601,-22992.30626561,0.00023,2]
[367023392,1750620644611,-160.0,0.00023,3]
[367023393,1750620644621,-836.56272071,0.00023,3]
[367023394,1750620644631,-1000.0,0.00023064,2]
[367023395,1750620644641,-501.01,0.00023085,9]
[367023396,1750620644651,-589.09272406,0.00023098,2]
[367023397,1750620644660,-313.8,0.00023114,5]
[367023398,1750620644670,-5947.8118397,0.00023136,2]
[367023399,1750620644680,-437.24886619,0.00023157,2]
[367023400,1750620644689,-8263.81398369,0.000232,7]
[367023401,1750620644698,-215.0738,0.00023215,2]
[367023402,1750620644708,-4185.0,0.00023218,2]
[367023403,1750620644718,-138430.9580447,0.00023285,2]
[367023404,1750620644727,-1846.04,0.000233,7]
[367023405,1750620644737,-1000.0,0.000233,2]
[367023406,1750620644747,-1000.0,0.00023306,2]
[367023407,1750620644756,-500.0,0.00023367,2]
[367023408,1750620644766,-5947.8118397,0.00023372,2]
[367023409,1750620644776,-500.0,0.00023382,2]
[367023410,1750620644787,-419.94662959,0.00023396,2]
[367023411,1750620644798,-1500.0,0.00023396,2]
[367023412,1750620644808,-313.8,0.00023396,5]
[367023413,1750620644819,-541.83808783,0.00023467,2]
[367023414,1750620644829,-539.97937142,0.00023467,2]
[367023415,1750620644839,-448.46180867,0.00023467,2]
[367023416,1750620644848,-203.45627109,0.00023467,2]
[367023417,1750620644859,-1000.0,0.00023477,2]
[367023418,1750620644870,-437.24886619,0.00023489,2]
[367023419,1750620644880,-500.0,0.00023491,2]
[367023420,1750620644891,-161.4436744,0.000235,7]
[367023421,1750620644902,-1000.0,0.000235,2]
[367023422,1750620644912,-2000.0,0.00023516,2]
[367023423,1750620644921,-2000.0,0.00023516,2]
[367023424,1750620644930,-2000.0,0.00023516,2]
[367023425,1750620644942,-1304.88004104,0.00023516,2]
[367023426,1750620644952,-351.70149214,0.00023516,2]
[367023427,1750620644963,-1000.0,0.00023521,2]
[367023428,1750620644973,-1000.0,0.00023521,2]
[367023429,1750620644987,-1000.0,0.00023521,2]
[367023430,1750620644996,-1000.0,0.00023521,2]
[367023431,1750620645007,-1000.0,0.00023521,2]
[367023432,1750620645016,-1000.0,0.00023521,2]
[367023433,1750620645025,-1000.0,0.00023521,2]
[367023434,1750620645035,-1000.0,0.00023521,2]
[367023435,1750620645043,-1000.0,0.00023521,2]
[367023436,1750620645053,-1000.0,0.00023521,2]
[367023437,1750620645062,-500.0,0.00023577,2]
[367023438,1750620645071,-197.68801559,0.0002358,2]
[367023439,1750620645081,-500.0,0.0002358,2]
[367023440,1750620645090,-500.0,0.0002358,2]
[367023441,1750620645100,-437.24886619,0.00023583,2]
[367023442,1750620645109,-1000.0,0.00023597,2]
[367023443,1750620645119,-60170.31380958,0.000236,2]
[367023444,1750620645128,-5947.8118397,0.00023608,2]
[367023445,1750620645138,-1000.0,0.0002361,2]
[367023446,1750620645147,-1000.0,0.00023611,2]
[367023447,1750620645161,-296.56,0.00023633,2]
[367023448,1750620645171,-501.01,0.00023633,10]
[367023449,1750620645180,-500.0,0.0002365,2]
[367023450,1750620645189,-1000.0,0.00023662,2]
[367023451,1750620645199,-500.0,0.00023674,2]
[367023452,1750620645208,-313.8,0.00023678,5]
[367023453,1750620645217,-167.12488715,0.00023683,2]
[367023454,1750620645228,-238.20578577,0.000237,4]
[367023455,1750620645238,-238.20578577,0.000237,4]
[367023456,1750620645248,-238.20578577,0.000237,4]
[367023457,1750620645257,-238.20578577,0.000237,4]
[367023458,1750620645267,-238.20578577,0.000237,4]
[367023459,1750620645276,-238.20578577,0.000237,4]
[367023460,1750620645285,-238.20578577,0.000237,4]
[367023461,1750620645295,-238.20578577,0.000237,4]
[367023462,1750620645304,-238.20578577,0.000237,4]
[367023463,1750620645314,-238.20578577,0.000237,4]
[367023464,1750620645323,-238.20578577,0.000237,4]
[367023465,1750620645334,-238.20578577,0.000237,4]
[367023466,1750620645344,-238.20578577,0.000237,4]
[367023467,1750620645354,-238.20578577,0.000237,4]
[367023468,1750620645364,-238.20578577,0.000237,4]
[367023469,1750620645374,-238.20578577,0.000237,4]
[367023470,1750620645384,-238.20578577,0.000237,4]
[367023471,1750620645393,-238.20578577,0.000237,4]
[367023472,1750620645403,-238.20578577,0.000237,4]
[367023473,1750620645413,-238.2,0.000237,4]
[367023474,1750620645423,-555.81350014,0.000237,4]
[367023475,1750620645433,-555.81350014,0.000237,4]
[367023476,1750620645443,-555.81350014,0.000237,4]
[367023477,1750620645452,-555.81350014,0.000237,4]
[367023478,1750620645462,-555.81350014,0.000237,4]
[367023479,1750620645471,-555.81350014,0.000237,4]
[367023480,1750620645481,-555.81350014,0.000237,4]
[367023481,1750620645491,-555.81350014,0.000237,4]
[367023482,1750620645502,-555.81350014,0.000237,4]
[367023483,1750620645512,-555.81350014,0.000237,4]
[367023484,1750620645522,-555.81350014,0.000237,4]
[367023485,1750620645532,-555.81350014,0.000237,4]
[367023486,1750620645542,-555.81350014,0.000237,4]
[367023487,1750620645551,-555.81350014,0.000237,4]
[367023488,1750620645561,-555.81350014,0.000237,4]
[367023489,1750620645571,-555.81350014,0.000237,4]
[367023490,1750620645580,-555.81350014,0.000237,4]
[367023491,1750620645589,-555.81350014,0.000237,4]
[367023492,1750620645598,-277.62820373,0.000237,4]
[367023493,1750620645607,-277.62820373,0.000237,4]
[367023494,1750620645616,-277.62820373,0.000237,4]
[367023495,1750620645626,-277.62820373,0.000237,4]
[367023496,1750620645635,-277.62820373,0.000237,4]
[367023497,1750620645645,-277.62820373,0.000237,4]
[367023498,1750620645654,-277.62820373,0.000237,4]
[367023499,1750620645664,-277.62820373,0.000237,4]
[367023500,1750620645673,-277.62820373,0.000237,4]
[367023501,1750620645682,-277.62820373,0.000237,4]
[367023502,1750620645692,-277.62820373,0.000237,4]
[367023503,1750620645701,-277.62820373,0.000237,4]
[367023504,1750620645710,-277.62820373,0.000237,4]
[367023505,1750620645720,-277.62820373,0.000237,4]
[367023506,1750620645729,-277.62820373,0.000237,4]
[367023507,1750620645738,-277.62820373,0.000237,4]
[367023508,1750620645747,-277.62820373,0.000237,4]
[367023509,1750620645757,-277.62820373,0.000237,4]
[367023510,1750620645766,-277.62820373,0.000237,4]
[367023511,1750620645776,-277.62,0.000237,4]
[367023512,1750620645786,-647.79914204,0.000237,4]
[367023513,1750620645795,-647.79914204,0.000237,4]
[367023514,1750620645804,-647.79914204,0.000237,4]
[367023515,1750620645814,-647.79914204,0.000237,4]
[367023516,1750620645823,-647.79914204,0.000237,4]
[367023517,1750620645833,-647.79914204,0.000237,4]
[367023518,1750620645842,-647.79914204,0.000237,4]
[367023519,1750620645852,-647.79914204,0.000237,4]
[367023520,1750620645861,-647.79914204,0.000237,4]
[367023521,1750620645871,-647.79914204,0.000237,4]
[367023522,1750620645880,-647.79914204,0.000237,4]
[367023523,1750620645889,-647.79914204,0.000237,4]
[367023524,1750620645899,-647.79914204,0.000237,4]
[367023525,1750620645908,-647.79914204,0.000237,4]
[367023526,1750620645917,-647.79914204,0.000237,4]
[367023527,1750620645926,-647.79914204,0.000237,4]
[367023528,1750620645935,-647.79914204,0.000237,4]
[367023529,1750620645945,-647.79914204,0.000237,4]
[367023530,1750620645954,-555.81350014,0.00023721,4]
[367023531,1750620645964,-647.79914204,0.00023721,4]
[367023532,1750620645975,-1000.0,0.00023727,2]
[367023533,1750620645989,-420.0,0.0002375,2]
[367023534,1750620645998,-420.0,0.0002375,2]
[367023535,1750620646008,-420.0,0.0002375,2]
[367023536,1750620646018,-420.0,0.0002375,2]
[367023537,1750620646028,-5888.0,0.00023753,2]
[367023538,1750620646037,-988.5110856,0.00023753,3]
[367023539,1750620646047,-1000.0,0.00023758,2]
[367023540,1750620646057,-654.0,0.00023761,2]
[367023541,1750620646067,-589.09272406,0.00023769,2]
[367023542,1750620646076,-981.32,0.00023781,3]
[367023543,1750620646219,-490.66,0.00023781,3]
[367023544,1750620646244,-168077.93769289,0.000238,5]
[367023545,1750620646253,-1000.0,0.0002383,2]
[367023546,1750620646263,-555.81,0.0002384,4]
[367023547,1750620646273,-647.79,0.0002384,4]
[367023548,1750620646282,-5947.8118397,0.00023844,2]
[367023549,1750620646292,-1680.0,0.00023862,2]
[367023550,1750620646301,-4185.0,0.0002387,2]
[367023551,1750620646311,-1000.0,0.00023871,2]
[367023552,1750620646323,-431.48978119,0.00023872,2]
[367023553,1750620646333,-1000.0,0.00023872,2]
[367023554,1750620646342,-965.0,0.00023874,2]
[367023555,1750620646353,-406.0,0.00023874,2]
[367023556,1750620646362,-2161.0,0.00023874,2]
[367023557,1750620646372,-674.96332681,0.00023881,2]
[367023558,1750620646382,-76742.07818255,0.000239,2]
[367023559,1750620646391,-500.0,0.00023939,2]
[367023560,1750620646402,-39256.8440347,0.0002394,2]
[367023561,1750620646412,-27385.52694176,0.0002394,2]
[367023562,1750620646422,-1496275.44198166,0.0002394,7]
[367023563,1750620646432,-1517.83945462,0.00023944,2]
[367023564,1750620646442,-313.8,0.0002396,5]
[367023565,1750620646451,-1000.0,0.00023965,2]
[367023566,1750620646461,-437.24886619,0.00023965,2]
[367023567,1750620646471,-1000.0,0.00023971,2]
[367023568,1750620646480,-500.0,0.00023973,2]
[367023569,1750620646490,-500.0,0.00023973,2]
[367023570,1750620646499,-500.0,0.00023973,2]
[367023572,1750620646508,-500.0,0.00023973,2]
[367023573,1750620646518,-500.0,0.00023973,2]
[367023574,1750620646527,-500.0,0.00023973,2]
[367023575,1750620646536,-500.0,0.00023973,2]
[367023576,1750620646546,-500.0,0.00023973,2]
[367023577,1750620646555,-500.0,0.00023973,2]
[367023579,1750620646565,-518.21844257,0.00023973,2]
[367023580,1750620646574,-500.0,0.00023973,2]
[367023581,1750620646583,-500.0,0.00023973,2]
[367023582,1750620646593,-500.0,0.00023973,2]
[367023583,1750620646602,-500.0,0.00023973,2]
[367023584,1750620646612,-500.0,0.00023973,2]
[367023586,1750620646621,-500.0,0.00023973,2]
[367023588,1750620646630,-500.0,0.00023973,2]
[367023590,1750620646639,-500.0,0.00023973,2]
[367023591,1750620646648,-500.0,0.00023973,2]
[367023592,1750620646657,-500.0,0.00023973,2]
[367023593,1750620646667,-500.0,0.00023973,2]
[367023595,1750620646676,-500.0,0.00023973,2]
[367023597,1750620646685,-500.0,0.00023973,2]
[367023599,1750620646694,-500.0,0.00023973,2]
[367023601,1750620646704,-500.0,0.00023973,2]
[367023603,1750620646719,-500.0,0.00023973,2]
[367023605,1750620646729,-500.0,0.00023973,2]
[367023607,1750620646738,-600.0,0.00023973,2]
[367023609,1750620646748,-500.0,0.00023973,2]
[367023611,1750620646764,-399.2877743,0.00023973,2]
[367023613,1750620646774,-500.0,0.00023973,2]
[367023615,1750620646783,-500.0,0.00023973,2]
[367023617,1750620646792,-500.0,0.00023973,2]
[367023619,1750620646802,-500.0,0.00023973,2]
[367023621,1750620646811,-500.0,0.00023973,2]
[367023623,1750620646820,-500.0,0.00023973,2]
[367023625,1750620646829,-500.0,0.00023973,2]
[367023627,1750620646840,-500.0,0.00023973,2]
[367023629,1750620646849,-500.0,0.00023973,2]
[367023631,1750620646858,-500.0,0.00023973,2]
[367023633,1750620646868,-500.0,0.00023978,2]
[367023635,1750620646877,-10050.464759,0.0002399,2]
[367023637,1750620646886,-500.0,0.00023991,2]
[367023639,1750620646895,-2631.85,0.00024,2]
[367023641,1750620646904,-158.54,0.00024,2]
[367023642,1750620646913,-2000.0,0.00024,14]
[367023644,1750620646922,-2000.0,0.00024,14]
[367023647,1750620646932,-2000.0,0.00024,14]
[367023649,1750620646941,-2000.0,0.00024,14]
[367023651,1750620646950,-7051.52935762,0.00024,7]
[367023653,1750620646958,-884.94995308,0.00024,14]
[367023655,1750620646967,-1355.0,0.00024,14]
[367023656,1750620646976,-152.34293798,0.00024,2]
[367023657,1750620646985,-40075.69248613,0.00024,2]
[367023658,1750620646995,-151.0,0.00024,14]
[367023659,1750620647005,-38241.51354989,0.00024,2]
[367023660,1750620647014,-451.97302203,0.00024,2]
[367023661,1750620647023,-178.16380635,0.00024,7]
[367023662,1750620647033,-160.0,0.00024,7]
[367023663,1750620647042,-230.14598372,0.00024,7]
[367023664,1750620647051,-160.0,0.00024,7]
[367023665,1750620647061,-836.56272071,0.00024,7]
[367023666,1750620647070,-836.56272071,0.00024,7]
[367023667,1750620647079,-1000.0,0.00024039,2]
[367023668,1750620647091,-592.85541307,0.00024064,2]
[367023669,1750620647100,-500.0,0.00024064,2]
[367023670,1750620647109,-575.20353236,0.00024064,2]
[367023671,1750620647118,-500.0,0.00024068,2]
[367023672,1750620647128,-852.66742282,0.00024068,2]
[367023673,1750620647137,-1500.0,0.00024068,2]
[367023674,1750620647146,-305.608019,0.00024068,2]
[367023675,1750620647160,-1500.0,0.00024068,2]
[367023676,1750620647169,-1500.0,0.00024068,2]
[367023677,1750620647179,-1500.0,0.00024068,2]
[367023678,1750620647188,-1597.45420268,0.00024068,2]
[367023679,1750620647198,-1500.0,0.00024068,2]
[367023680,1750620647207,-1500.0,0.00024068,2]
[367023681,1750620647216,-1565.94837091,0.00024068,2]
[367023682,1750620647227,-160.0,0.000241,10]
[367023683,1750620647235,-213.59462818,0.000241,10]
[367023684,1750620647246,-425.01221603,0.000241,10]
[367023685,1750620647255,-250.0,0.00024102,2]
[367023686,1750620647264,-500.0,0.0002411,2]
[367023687,1750620647273,-1000.0,0.0002411,2]
[367023688,1750620647284,-289.5646249,0.00024121,2]
[367023689,1750620647294,-4185.0,0.00024126,2]
[367023690,1750620647303,-1000.0,0.00024128,2]
[367023691,1750620647312,-1000.0,0.00024128,2]
[367023692,1750620647321,-290.010093,0.00024146,2]
[367023693,1750620647330,-4185.0,0.00024148,2]
[367023694,1750620647341,-524.02598587,0.0002415,10]
[367023695,1750620647350,-160.0,0.0002415,10]
[367023696,1750620647359,-846.39664074,0.0002415,10]
[367023697,1750620647368,-160.0,0.0002415,10]
[367023698,1750620647378,-1000.0,0.00024165,2]
[367023699,1750620647387,-500.0,0.0002418,2]
[367023700,1750620647397,-501.01,0.00024181,11]
[367023701,1750620647406,-437.24886619,0.00024191,2]
[367023702,1750620647417,-1000.0,0.00024194,2]
[367023703,1750620647427,-1000.0,0.00024196,2]
[367023704,1750620647437,-151.0,0.000242,10]
[367023705,1750620647446,-160.0,0.000242,10]
[367023706,1750620647455,-230.14598372,0.000242,10]
[367023707,1750620647464,-160.0,0.000242,10]
[367023708,1750620647475,-12551.52821599,0.000242,10]
[367023709,1750620647485,-836.56272071,0.000242,10]
[367023710,1750620647495,-4185.0,0.00024215,2]
[367023711,1750620647504,-313.8,0.00024242,6]
[367023712,1750620647514,-5000.0,0.00024256,2]
[367023713,1750620647523,-4185.0,0.00024257,2]
[367023714,1750620647532,-613.6773564,0.00024273,2]
[367023715,1750620647541,-500.0,0.00024276,2]
[367023716,1750620647550,-151.0,0.000243,8]
[367023717,1750620647560,-1846.04,0.000243,7]
[367023718,1750620647569,-1000.0,0.00024358,2]
[367023719,1750620647579,-1000.0,0.00024361,2]
[367023720,1750620647590,-12500.0,0.00024385,3]
[367023721,1750620647599,-12500.0,0.00024394,3]
[367023722,1750620647609,-1000.0,0.00024394,2]
[367023723,1750620647619,-151.0,0.000244,7]
[367023724,1750620647628,-151.0,0.000244,10]
[367023725,1750620647639,-151.0,0.000244,6]
[367023726,1750620647650,-160.0,0.000244,3]
[367023727,1750620647660,-846.39664074,0.000244,3]
[367023728,1750620647669,-425.01221603,0.000244,3]
[367023729,1750620647679,-160.0,0.000244,3]
[367023730,1750620647688,-213.59462818,0.000244,3]
[367023731,1750620647698,-160.0,0.000244,3]
[367023732,1750620647707,-160.0,0.000244,3]
[367023733,1750620647717,-230.14598372,0.000244,3]
[367023734,1750620647726,-160.0,0.000244,3]
[367023735,1750620647736,-12551.52821599,0.000244,3]
[367023736,1750620647745,-836.56272071,0.000244,3]
[367023737,1750620647754,-12500.0,0.00024403,3]
[367023738,1750620647764,-500.0,0.00024408,2]
[367023739,1750620647774,-12500.0,0.00024411,3]
[367023740,1750620647783,-160.0,0.00024411,3]
[367023741,1750620647792,-12500.0,0.0002442,3]
[367023742,1750620647802,-500.0,0.00024426,2]
[367023743,1750620647811,-507.70627684,0.00024427,2]
[367023744,1750620647820,-12500.0,0.00024429,3]
[367023745,1750620647829,-12500.0,0.00024438,3]
[367023746,1750620647839,-365.8215413,0.00024438,2]
[367023747,1750620647848,-589.09272406,0.0002444,2]
[367023748,1750620647857,-12500.0,0.00024447,3]
[367023749,1750620647867,-12500.0,0.00024455,3]
[367023750,1750620647876,-12500.0,0.00024464,3]
[367023751,1750620647885,-437.24886619,0.00024471,2]
[367023752,1750620647894,-500.0,0.00024473,2]